Cogmind - Beta 13 @@@ ROGUE MODE // 2024.07.01 @ 18:36:28 Player: Trollpotato Result: Destroyed by YI-UF0 with YI-UF0's Doublenader Performance ------------- Evolutions (0) 0 Regions Visited (2) 400 Robots Destroyed (36) 180 Value Destroyed (688) 688 Prototype IDs (0) 0 Alien Tech Used (0) 0 Bonus (0) 0 TOTAL SCORE: 1268 Bonus ------- None Cogmind --------- Core Integrity 0/250 Matter 300/300 Energy 100/100 System Corruption 7% Temperature Cool (0) Movement Rolling (115) Ox1 Location -10/Mines Parts ------- > --- POWER (1) -------- (None) > --- PROPULSION (2) --- Light Treads Compact Wheel > --- UTILITY (2) ------ Large Storage Unit Structural Scanner (fused) > --- WEAPON (2) ------- Light Assault Rifle Light Assault Rifle > --- INVENTORY (15) --- Ion Engine Light Nuclear Core Light Treads Compact Wheel Compact Wheel Improved Heat Sink High-capacity Battery (250) Medium Matter Pod (100) Weight Redist. System Weapon Shielding Light Armor Plating Light Armor Plating Particle Gun Grenade Launcher Grenade Launcher Peak State ------------ > --- POWER ------------ Ion Engine > --- PROPULSION ------- Wheel Compact Wheel > --- UTILITY ---------- Large Storage Unit Structural Scanner > --- WEAPON ----------- Assault Rifle Assault Rifle > --- INVENTORY -------- Ion Engine Light Nuclear Core Aluminum Leg Aluminum Leg Wheel Improved Heat Sink Large Battery Medium Matter Pod Light Armor Plating Light Armor Plating Hacking Suite Light Assault Rifle Light Assault Rifle Grenade Launcher [Rating: 9] Favorites ----------- Power Ion Engine Engine Ion Engine Propulsion Wheel Treads Light Treads Leg Aluminum Leg Wheel Wheel Utility Large Storage Unit Device Structural Scanner Storage Large Storage Unit Protection Light Armor Plating Weapon Assault Rifle Ballistic Gun Assault Rifle Build | -11 -10 -10 ------- Run | Yrd Mat Min Slots Evolved . | . . . Power . | . . . Propulsion . | . . . Utility . | . . . Weapon . | . . . Parts Attached 32 | 8 21 3 Power 4 | 1 3 . Engine 4 | 1 3 . Core . | . . . Reactor . | . . . Propulsion 16 | 3 10 3 Treads 2 | . 1 1 Leg 2 | . 2 . Wheel 12 | 3 7 2 Hover . | . . . Flight . | . . . Utility 8 | 2 6 . Device 3 | 1 2 . Storage 4 | 1 3 . Processor . | . . . Hackware . | . . . Protection 1 | . 1 . Artifact . | . . . Weapon 4 | 2 2 . Energy Gun . | . . . Energy Cannon . | . . . Ballistic Gun 4 | 2 2 . Ballistic Cannon . | . . . Launcher . | . . . Special Weapon . | . . . Impact Weapon . | . . . Slashing Weapon . | . . . Piercing Weapon . | . . . Special Melee Weapon . | . . . Unidentified Prototypes . | . . . Parts Lost 8 | . 7 1 Power 2 | . 1 1 Propulsion 3 | . 3 . Utility 1 | . 1 . Weapon 2 | . 2 . Highest Loss Streak 3 | . 3 1 To Critical Strikes . | . . . Average Slot Usage (%) 98 | . 98 100 Engine 13 | . 13 14 Treads 8 | . 7 14 Wheel 18 | . 19 14 Device 12 | . 12 14 Storage 13 | . 13 14 Protection 1 | . 1 . Ballistic Gun 27 | . 27 28 Naked Turns . | . . . Heaviest Build 30 | 9 30 28 Greatest Support 26 | 20 26 20 Greatest Overweight (x) 2 | . 2 1 Average Overweight (x) 1 | . 1 1 Largest Inventory Capacity 15 | 5 15 15 Average Capacity 14 | 5 14 15 Most Carried 15 | 5 15 15 Average Carried 12 | 3 12 14 Final Capacity 15 | 5 15 15 Final Carried 15 | 5 12 15 Class Distribution -------------------- 100% | Mutant Dominant Class ---------------- Mutant | -10/Materials Mutant | -10/Mines Resources | -11 -10 -10 ----------- Run | Yrd Mat Min Matter Collected 1216 | 396 649 171 Remotely . | . . . Salvage Created 1312 | 151 851 310 Parts 79 | 15 53 11 Haulers Intercepted 1 | . 1 . Recyclers Shooed . | . . . Parts Field Recycled . | . . . Retrieved Matter . | . . . Parts Self-Destructed . | . . . Prevented . | . . . Kills | -11 -10 -10 ------- Run | Yrd Mat Min Combat Hostiles Destroyed 20 | 1 17 2 Guns 20 | 1 17 2 Classes Destroyed 8 | 3 5 . Worker 2 | 1 1 . Tunneler 4 | 4 . . Hauler 1 | . 1 . Recycler 5 | . 2 3 Operator 1 | . 1 . Watcher 3 | . 3 . Swarmer 6 | . 6 . Grunt 14 | 1 11 2 Best Kill Streak 9 | 5 9 2 Combat Bots Only 9 | 1 9 2 Max Kills in Single Turn 1 | 1 1 1 Gunslinging . | . . . Exploded . | . . . Melee . | . . . Uniques/NPCs Destroyed . | . . . Combat | -11 -10 -10 -------- Run | Yrd Mat Min Hostile Shots Fired 115 | 5 95 15 Missed 28 | 1 23 4 Damage Taken 995 | 45 773 177 Core 253 | 12 195 46 Absorbed by Shields . | . . . Core Remaining (%) 95 | 95 . . Volleys Fired 104 | 11 72 21 Largest 2 | 2 2 2 Hottest 40 | 40 40 40 Shots Fired 207 | 22 142 43 Gun 207 | 22 142 43 Cannon . | . . . Launcher . | . . . Special . | . . . Kinetic 207 | 22 142 43 Thermal . | . . . Explosive . | . . . Electromagnetic . | . . . Robot Hit Streak 11 | 10 11 8 Robot Miss Streak 3 | 2 3 3 Penetration Max . | . . . Secondary Targets 5 | . 5 . Max Gunslinging Chain 1 | . 1 . Shots Hit Robots 137 | 15 94 28 Core Hits 59 | 7 41 11 Critical Kills 2 | . 1 1 Critical Parts Destroyed . | . . . Critical Strikes 2 | . 1 1 Destroy 2 | . 1 1 Melee Attacks . | . . . Impact . | . . . Slashing . | . . . Piercing . | . . . Sneak Attacks . | . . . Combat Hostiles . | . . . Follow-up Attacks . | . . . Damage Inflicted 1555 | 201 1129 225 Guns 1555 | 201 1129 225 Cannons . | . . . Explosions . | . . . Melee . | . . . Ramming . | . . . Kinetic 1555 | 201 1129 225 Thermal . | . . . Explosive . | . . . Electromagnetic . | . . . Impact . | . . . Slashing . | . . . Piercing . | . . . Highest Corruption 7 | . 7 7 Average Corruption 6 | . 6 7 Corruption Purged . | . . . Corruption Blocked . | . . . Effects 24 | . 15 9 Message Errors 3 | . 3 . Matter Fused 4 | . 2 2 Heat Flow Errors 3 | . 2 1 Energy Discharges 4 | . 3 1 Parts Rejected 1 | . 1 . Parts Fused 1 | . . 1 Data Loss (minor) 3 | . 3 . Misfires 2 | . . 2 Alerts 1 | . . 1 Weapon Failures 2 | . 1 1 Overload Shots . | . . . Overflow Damage . | . . . Projectiles . | . . . Explosions . | . . . Melee . | . . . Knockbacks . | . . . Impact . | . . . Kinetic . | . . . Secondary . | . . . Self-Inflicted Damage . | . . . Shots . | . . . Rammed . | . . . Targets Rammed . | . . . Kicked . | . . . Crushed . | . . . Highest Temperature 256 | . 189 256 Average Temperature 47 | . 40 60 Received Heat Transfer 468 | 24 357 87 Siege Activations . | . . . Robots Corrupted . | . . . Combat Hostiles . | . . . Parts Fried . | . . . Impact Corruptions . | . . . Robots Melted . | . . . Combat Hostiles . | . . . Parts Melted . | . . . Heat Transferred . | . . . Parts Sabotaged . | . . . Parts Stolen . | . . . Parts Stripped . | . . . Power Chain Reactions . | . . . Alert | -11 -10 -10 ------- Run | Yrd Mat Min Peak Influence 329 | 45 329 93 Initial 29 | . 29 28 Average 126 | 12 152 59 Maximum Alert Level 1 | . 1 . Low Security (%) 77 | 100 70 100 Level 1 22 | . 29 . Level 2 . | . . . Level 3 . | . . . Level 4 . | . . . Level 5 . | . . . High Security . | . . . Max Security . | . . . Squads Dispatched 3 | . 3 . Investigation 2 | . 2 . Extermination . | . . . Reinforcement 1 | . 1 . Assault . | . . . Garrison . | . . . Intercept . | . . . Searches Triggered . | . . . Construction Impeded . | . . . Haulers Reinforced . | . . . Active Scanning Responses . | . . . Cargo Convoy Interrupts . | . . . Stealth | -11 -10 -10 --------- Run | Yrd Mat Min Distress Signals 1 | . 1 . Communications Jammed . | . . . Distress Signals . | . . . Times Spotted 31 | 1 28 2 Peak Tracking Total 7 | 1 7 2 Tactical Retreats 3 | . 3 . Traps | -11 -10 -10 ------- Run | Yrd Mat Min Traps Triggered 6 | . 6 . Indirectly . | . . . Trap Hack Attempts . | . . . Triggered . | . . . Disarmed . | . . . Reprogrammed . | . . . Reused . | . . . Traps Extracted . | . . . Installed . | . . . Triggered . | . . . Machines | -11 -10 -10 ---------- Run | Yrd Mat Min Machines Disabled . | . . . Max in Single Turn . | . . . Machines Repaired . | . . . Machines Dismantled . | . . . Machines Sabotaged . | . . . Overloaded Fab Kills . | . . . Hacking | -11 -10 -10 --------- Run | Yrd Mat Min Machines Accessed 7 | . 7 . Terminals 6 | . 6 . Fabricators . | . . . Repair Stations . | . . . Recycling Units 1 | . 1 . Scanalyzers . | . . . Garrison Access . | . . . Total Hacks 30 | . 30 . Successful 14 | . 14 . Failed 16 | . 16 . Catastrophic 2 | . 2 . Database Lockouts . | . . . Manual 26 | . 26 . Terminals 29 | . 29 . Fabricators . | . . . Repair Stations . | . . . Recycling Units 1 | . 1 . Scanalyzers . | . . . Garrison Access . | . . . Terminal Hacks 4 | . 4 . Record 1 | . 1 . Branch Access Points 1 | . 1 . Alert Level 1 | . 1 . Zone Layout 1 | . 1 . Fabricator Hacks . | . . . Repair Station Hacks . | . . . Recycling Unit Hacks 1 | . 1 . Report Inventory 1 | . 1 . Scanalyzer . | . . . Garrison Access Hacks . | . . . Unauthorized Hacks 9 | . 9 . Terminals 9 | . 9 . Track 3 | . 3 . Botnet 5 | . 5 . Operators 1 | . 1 . Fabricators . | . . . Repair Stations . | . . . Recycling Units . | . . . Scanalyzers . | . . . Garrison Access . | . . . Data Cores Recovered . | . . . Used . | . . . Hacking Detections 7 | . 7 . Full Trace Events . | . . . Feedback Events . | . . . Feedback Blocked . | . . . Robot Schematics Acquired . | . . . Robots Built . | . . . Authchips . | . . . Time . | . . . Total Robot Build Rating . | . . . Part Schematics Acquired . | . . . Parts Built . | . . . Authchips . | . . . Time . | . . . Total Part Build Rating . | . . . Parts Repaired . | . . . Time . | . . . Parts Recycled . | . . . Recycled Matter . | . . . Retrieved Matter . | . . . Retrieved Components . | . . . Parts Scanalyzed . | . . . Part Schematics Acquired . | . . . Parts Damaged . | . . . Bothacking | -11 -10 -10 ------------ Run | Yrd Mat Min Used RIF Installer . | . . . Robots Hacked . | . . . Non-combat . | . . . Combat . | . . . Robot Hacks Applied . | . . . Relay Couplers Released . | . . . Fabnet Peak Effective % . | . . . Robots Rewired . | . . . Allies Hacked . | . . . Hacks Repelled . | . . . Allies | -11 -10 -10 -------- Run | Yrd Mat Min Total Allies . | . . . Largest Group . | . . . Highest-Rated Group . | . . . Highest-Rated Ally . | . . . Total Orders . | . . . Ally Attacks . | . . . Total Damage . | . . . Kills . | . . . Allies Corrupted . | . . . Allies Melted . | . . . Intel | -11 -10 -10 ------- Run | Yrd Mat Min Robot Analysis Total . | . . . Derelict Logs Recovered 1 | . . 1 Drone Launches . | . . . Drone Recoveries . | . . . Exploration | -11 -10 -10 ------------- Run | Yrd Mat Min Turns Passed 1613 | 105 1223 285 Spaces Moved 1065 | 75 855 135 Core 17 | 17 . . Treads 4 | . 1 3 Legs . | . . . Wheels 1044 | 58 854 132 Hover . | . . . Flight . | . . . Fastest Speed 50 | 50 80 115 Average Speed 107 | 73 108 117 Slowest Speed 240 | 80 240 240 Overloaded Moves . | . . . Propulsion Burnouts . | . . . Robots Hopped . | . . . Cave-ins Triggered . | . . . Exploration Rate (%) 41 | 6 97 21 Regions Visited 2 Branch Regions 1 Pre-discovered Areas . | . . . Known Exits Taken 1 | . 1 . Unknown Exits Taken 1 | 1 . . Scrap Searched 1 | . . 1 Spaces Dug . | . . . Terrain Destroyed . | . . . Melee . | . . . Projectile . | . . . AOE . | . . . Terrain Rammed . | . . . Walls Destroyed . | . . . Machines Disabled . | . . . Actions | -11 -10 -10 --------- Run | Yrd Mat Min Total 1340 | 100 1013 227 Wait 88 | . 25 63 Move 1063 | 74 854 135 Hop . | . . . Pick Up 39 | 6 30 3 Fast Attach 10 | 6 4 . Attach 7 | 1 6 . Detach . | . . . Swap 15 | 1 11 3 Drop 14 | 1 11 2 Fire 104 | 11 72 21 Melee . | . . . Ram . | . . . Kick . | . . . Crush . | . . . Escape Stasis . | . . . Rewire . | . . . Trap . | . . . Miscellaneous . | . . . Route ------- -11/Scrapyard -10/Materials (discovered 5 exits: [*Mat x2] / *Min x2 / [Sub]) -10/Mines (discovered 1 exit: [*Mat]) History --------- Turn | Location | Event 2 | -11/Scrapyard | Met Revision 17 64 | -11/Scrapyard | Discovered new exit (range 8) 106 | -11/Scrapyard | Entered Materials 303 | -10/Materials | Build established: Mutant 377 | -10/Materials | Core integrity fell below 50% 401 | -10/Materials | Discovered new exit (range 9) 404 | -10/Materials | Destroyed 9 combat bots 408 | -10/Materials | Lost 3 parts (1p1n1u) 868 | -10/Materials | Discovered new exit (range 9) 874 | -10/Materials | Discovered new exit (range 9) 1110 | -10/Materials | Core integrity fell below 20% 1205 | -10/Materials | Identified exit to Mines 1219 | -10/Materials | Discovered new exit (range 8) 1329 | -10/Materials | Entered Mines 1331 | -10/Mines | YI-UF0 nonchalantly dropped a Grenade Launcher on the ground 1347 | -10/Mines | Met a Derelict bent on vengeance 1375 | -10/Mines | Learned Materials terminal intel 1490 | -10/Mines | Discovered new exit (range 7) 1614 | -10/Mines | Destroyed by YI-UF0 with YI-UF0's Doublenader Last Messages --------------- 01543_ R-06 Scavenger destroyed. 01551_ System corrupted: Energy discharge (-55). 01553_ Acquired 9 matter. 01555_ Dropped Com. Wheel. 01557_ K-01 Serf collects debris. 01558_ Dropped Lgt. Treads. 01560_ K-01 Serf collects debris. 01561_ Acquired 20 matter. 01564_ K-01 Serf collects debris. 01566_ Acquired Particle Gun. 01567_ K-01 Serf collects debris. 01577_ K-01 Serf cleans the Pulverizer. 01585_ System corrupted: Matter fused (-7). 01604_ Acquired 7 matter. 01605_ U-05 Engineer lays Concrete. 01606_ U-05 Engineer builds a Wall. 01611_ U-05 Engineer lays Concrete. 01614_ System corrupted: Matter fused (-5). 01614_ U-05 Engineer destroyed. 01614_ Ion Engine destroyed. Map ----- +----------------------------------------------------+ | | | | | | | | | | | | | ##############???????????????????????????????????? | | #####################????????#####???????????????? | | % #########???????#######??????????????? | | " """" """"% ##???????### ###??????????????? | | " """" """" ##???????## ###?????????????? | | " """" """" ##### ##???????## ####????????????? | | #####* ##???????## ###????????????? | | " """" ##?## ########### ##????????????? | | " """" ##?## ########### ##????????????? | | " """" ##?## ###????????????? | | < ##?## #####????????????? | | " """" = ##?###### ##############?????????????? | | " """"=% ##?###### ############???????????????? | | " """"!!= ##?????## ##?###?????????????????????? | | = ##?????## #######????????????????????? | | ##?????## #### ##????????????????????? | | ##############?????## =###????????????????????? | | ##############?????######%##?????????????????????? | | ???????????????????######[##?????????????????????? | | ??????????????????????###@###????????????????????? | | ?????????????????????### = ????????????????????? | | ?????????????????????## | #????????????????? | | ?????????????????????## = g ##????????????????? | | ?????????????????????## ##????????????????? | | ?????????????????????### ##????????????????? | | ?????????????????????### #####????????????????? | | ??????????????????????## ######????????????????? | | ?????????????????????? ###???????????????????? | | ??????????????????????? #????????????????????? | | ???????????????????????= ?????????????????????? | | ??????????????????????? ?????????????????????? | | ??????????????????????? ?????????????????????? | | ?????????????????????? ????????????????????? | | ?????????????????????? #####????????????????????? | | ?????????????????????? ######????????????????????? | | ?????????????????????? ##????????????????????????? | | ?????????????????????????????????????????????????? | | ?????????????????????????????????????????????????? | | ?????????????????????????????????????????????????? | | ?????????????????????????????????????????????????? | | ?????????????????????????????????????????????????? | | ?????????????????????????????????????????????????? | | ?????????????????????????????????????????????????? | | ?????????????????????????????????????????????????? | +----------------------------------------------------+ Best States ------------- Heat Dissipation 25 Energy Generation 10 Energy Capacity 250 Matter Stores 350 Matter Capacity 350 Sight Range 16 Terrain Scan Density 10 Armor Coverage 150 Evasion (%) 50 Recoil Reduction 1 Item Schematics ----------------- None Robot Schematics ------------------ None Fabricated ------------ Nothing Alien Tech Used ----------------- None Achievements -------------- None Challenges ------------ None Game ------ Seed TacticalServoReplicator Manual? 0 Play Time 00:32:41 Cumulative 59.5 hours Start 2024.07.01 @ 18:03:56 End 2024.07.01 @ 18:36:28 Sessions 1 Manual Loads 0 Difficulty Rogue Special Mode None Game No. 36 Rogue 36 Adventurer 0 Explorer 0 Win Type - Total 0 Types 0/0/0/0/0/0/0/0/0 Lore% 19 Gallery% 26 Achievement% 25 Wizard Run 0 Options --------- Layout 1 ASCII 0 Keyboard 1 Movement Numpad Keybinds 0 Fullscreen 2 Font 24/Smallcaps Map View 50x35 Zoom Use 0% Tactical HUD 1 Map Filters NONE Filters NONE Steam 1 RUN: 1b50dd24-0596-4334-9844-df48f0775d13